Cogmind - Beta 14 @@@ ROGUE MODE // 2025.03.01 @ 21:15:52 Player: Skergy Result: Destroyed by XS-SRP(R) with Subdweller Laser Performance ------------- Evolutions (0) 0 Regions Visited (2) 400 Robots Destroyed (27) 135 Value Destroyed (621) 621 Prototype IDs (11) 220 Alien Tech Used (0) 0 Bonus (0) 0 TOTAL SCORE: 1376 Bonus ------- None Cogmind --------- Core Integrity 0/250 Matter 250/300 Energy 265/265 System Corruption 0% Temperature Cool (6) Movement Rolling (145) Ox3 Location -10/Subcaves Parts ------- > --- POWER (1) -------- Reinforced Ion Engine > --- PROPULSION (2) --- Compact Wheel > --- UTILITY (2) ------ High-capacity Storage Unit Signal Interpreter > --- WEAPON (2) ------- Battle Rifle Subdweller Shrapnel Launcher > --- INVENTORY (20) --- Light Ion Engine Reinforced Ion Engine Light Treads Aluminum Leg Aluminum Leg Aluminum Leg Large Storage Unit Large Matter Pod (150) Subdweller Optics Signal Interpreter Improved Terrain Scanner Terrain Scan Processor ECM Suite Light Armor Plating Assault Rifle Light Assault Rifle Grenade Launcher Flail Shrapnel Trap Piercing Trap Peak State ------------ > --- POWER ------------ Reinforced Ion Engine > --- PROPULSION ------- Compact Wheel Compact Wheel > --- UTILITY ---------- High-capacity Storage Unit Signal Interpreter > --- WEAPON ----------- Subdweller Shrapnel Launcher Flail > --- INVENTORY -------- Light Ion Engine Reinforced Ion Engine Light Treads Aluminum Leg Aluminum Leg Aluminum Leg Large Storage Unit Large Matter Pod Visual Processing Unit Signal Interpreter Improved Terrain Scanner Terrain Scan Processor ECM Suite Light Armor Plating EM Pulse Gun Assault Rifle Light Assault Rifle Grenade Launcher Shrapnel Trap Piercing Trap [Rating: 12] Favorites ----------- Power Reinforced Ion Engine Engine Reinforced Ion Engine Propulsion Light Treads Treads Light Treads Wheel Compact Wheel Utility High-capacity Storage Unit Storage High-capacity Storage Unit Processor Signal Interpreter Weapon Assault Rifle Ballistic Gun Assault Rifle Launcher Subdweller Shrapnel Launcher Impact Weapon Flail Build | -11 -10 -10 ------- Run | Yrd Mat Sub Slots Evolved . | . . . Power . | . . . Propulsion . | . . . Utility . | . . . Weapon . | . . . Parts Attached 25 | 7 8 10 Power 2 | 1 1 . Engine 2 | 1 1 . Core . | . . . Reactor . | . . . Propulsion 4 | 2 . 2 Treads 2 | 2 . . Leg . | . . . Wheel 2 | . . 2 Hover . | . . . Flight . | . . . Utility 5 | 1 4 . Device . | . . . Storage 3 | 1 2 . Processor 2 | . 2 . Hackware . | . . . Protection . | . . . Artifact . | . . . Weapon 14 | 3 3 8 Energy Gun . | . . . Energy Cannon . | . . . Ballistic Gun 7 | 3 2 2 Ballistic Cannon . | . . . Launcher 3 | . . 3 Special Weapon . | . . . Impact Weapon 4 | . 1 3 Slashing Weapon . | . . . Piercing Weapon . | . . . Special Melee Weapon . | . . . Unidentified Prototypes . | . . . Parts Lost 5 | . 3 2 Power 1 | . 1 . Propulsion 2 | . . 2 Utility . | . . . Weapon 2 | . 2 . Highest Loss Streak 3 | . 3 1 To Critical Strikes . | . . . Average Slot Usage (%) 96 | . 95 99 Engine 13 | . 13 14 Treads 21 | . 28 4 Wheel 6 | . . 22 Storage 14 | . 14 14 Processor 13 | . 12 14 Ballistic Gun 17 | . 19 14 Launcher 2 | . . 9 Impact Weapon 4 | . 5 3 Peak Build Rating 12 | 6 11 12 Average Rating 10 | 4 9 11 On Entrance 5 | . 6 11 Naked Turns . | . . . Heaviest Build 60 | 14 54 60 Greatest Support 40 | 40 40 40 Greatest Overweight (x) 1 | 1 1 1 Average Overweight (x) . | . . 1 Largest Inventory Capacity 20 | 8 20 20 Average Capacity 18 | 6 18 20 Most Carried 20 | 4 19 20 Average Carried 15 | 3 14 19 Final Capacity 20 | 8 20 20 Final Carried 20 | 4 19 20 Class Distribution -------------------- 100% | Mutant Dominant Class ---------------- Mutant | -10/Materials Mutant | -10/Subcaves Resources | -11 -10 -10 ----------- Run | Yrd Mat Sub Matter Collected 1169 | 241 577 351 Remotely . | . . . Salvage Created 730 | . 497 233 Parts 62 | . 45 17 Haulers Intercepted . | . . . Recyclers Shooed 1 | . 1 . Parts Field Recycled . | . . . Retrieved Matter . | . . . Parts Self-Destructed 4 | . . 4 Prevented . | . . . Kills | -11 -10 -10 ------- Run | Yrd Mat Sub Combat Hostiles Destroyed 19 | . 10 9 Guns 16 | . 10 6 AOE 3 | . . 3 Classes Destroyed 8 | . 7 1 Worker 2 | . 2 . Tunneler 2 | . 2 . Recycler 1 | . 1 . Operator 1 | . 1 . Watcher 2 | . 2 . Swarmer 6 | . 3 3 Grunt 7 | . 7 . Subdweller 6 | . . 6 Best Kill Streak 5 | . 5 3 Combat Bots Only 4 | . 4 3 Max Kills in Single Turn 1 | . 1 1 Gunslinging . | . . . Exploded 1 | . . 1 Melee . | . . . Uniques/NPCs Destroyed . | . . . Combat | -11 -10 -10 -------- Run | Yrd Mat Sub Hostile Shots Fired 139 | . 78 61 Missed 45 | . 27 18 Damage Taken 1240 | . 518 722 Core 257 | . 97 160 Absorbed by Shields . | . . . Core Remaining (%) 100 | 100 . . Volleys Fired 92 | . 63 29 Largest 2 | . 2 2 Hottest 65 | . 40 65 Shots Fired 166 | . 111 55 Gun 158 | . 111 47 Cannon . | . . . Launcher 8 | . . 8 Special . | . . . Kinetic 166 | . 111 55 Thermal . | . . . Explosive . | . . . Electromagnetic . | . . . Robot Hit Streak 21 | . 13 21 Robot Miss Streak 7 | . 7 5 Penetration Max . | . . . Secondary Targets 3 | . 3 . Max Gunslinging Chain 1 | . 1 . Shots Hit Robots 99 | . 62 37 Core Hits 45 | . 30 15 Critical Kills . | . . . Critical Parts Destroyed . | . . . Critical Strikes . | . . . Melee Attacks 23 | . 14 9 Impact 23 | . 14 9 Slashing . | . . . Piercing . | . . . Sneak Attacks . | . . . Combat Hostiles . | . . . Follow-up Attacks . | . . . Damage Inflicted 1769 | . 884 885 Guns 1305 | . 884 421 Cannons . | . . . Explosions 464 | . . 464 Melee . | . . . Ramming . | . . . Kinetic 1769 | . 884 885 Thermal . | . . . Explosive . | . . . Electromagnetic . | . . . Impact . | . . . Slashing . | . . . Piercing . | . . . Highest Corruption . | . . . Average Corruption . | . . . Corruption Purged . | . . . Corruption Blocked . | . . . Overload Shots . | . . . Overflow Damage . | . . . Projectiles . | . . . Explosions . | . . . Melee . | . . . Knockbacks . | . . . Impact . | . . . Kinetic . | . . . Secondary . | . . . Self-Inflicted Damage 30 | . . 30 Shots 2 | . . 2 Rammed . | . . . Targets Rammed . | . . . Kicked . | . . . Crushed . | . . . Highest Temperature 8 | . 8 4 Average Temperature 3 | . 4 2 Received Heat Transfer 351 | . 198 153 Siege Activations . | . . . Robots Corrupted . | . . . Combat Hostiles . | . . . Parts Fried . | . . . Impact Corruptions . | . . . Robots Melted . | . . . Combat Hostiles . | . . . Parts Melted 2 | . . 2 Heat Transferred . | . . . Parts Sabotaged . | . . . Parts Stolen . | . . . Parts Stripped . | . . . Power Chain Reactions . | . . . Alert | -11 -10 -10 ------- Run | Yrd Mat Sub Peak Influence 188 | . 188 . Initial . | . . . Average 20 | . 21 . Maximum Alert Level 1 | . 1 . Low Security (%) 99 | 100 99 . Level 1 . | . . . Level 2 . | . . . Level 3 . | . . . Level 4 . | . . . Level 5 . | . . . High Security . | . . . Max Security . | . . . Squads Dispatched 1 | . 1 . Investigation . | . . . Extermination . | . . . Reinforcement 1 | . 1 . Assault . | . . . Garrison . | . . . Intercept . | . . . Searches Triggered . | . . . Construction Impeded . | . . . Haulers Reinforced . | . . . Active Scanning Responses . | . . . Cargo Convoy Interrupts . | . . . Stealth | -11 -10 -10 --------- Run | Yrd Mat Sub Distress Signals 1 | . 1 . Communications Jammed . | . . . Distress Signals . | . . . Times Spotted 26 | . 17 9 Peak Tracking Total 5 | . 5 3 Tactical Retreats . | . . . Traps | -11 -10 -10 ------- Run | Yrd Mat Sub Traps Triggered . | . . . Indirectly . | . . . Trap Hack Attempts . | . . . Triggered . | . . . Disarmed . | . . . Reprogrammed . | . . . Reused . | . . . Traps Extracted . | . . . Installed . | . . . Triggered . | . . . Most Traps Carried 2 | . . 2 Machines | -11 -10 -10 ---------- Run | Yrd Mat Sub Machines Disabled . | . . . Max in Single Turn . | . . . Machines Repaired . | . . . Machines Dismantled . | . . . Machines Sabotaged . | . . . Overloaded Fab Kills . | . . . Hacking | -11 -10 -10 --------- Run | Yrd Mat Sub Machines Accessed 4 | . 3 1 Terminals 3 | . 3 . Fabricators . | . . . Repair Stations . | . . . Recycling Units . | . . . Scanalyzers . | . . . Garrison Access . | . . . Total Hacks 17 | . 15 2 Successful 13 | . 11 2 Failed 4 | . 4 . Catastrophic 2 | . 2 . Database Lockouts . | . . . Manual 14 | . 14 . Terminals 15 | . 15 . Fabricators . | . . . Repair Stations . | . . . Recycling Units . | . . . Scanalyzers . | . . . Garrison Access . | . . . Terminal Hacks 5 | . 3 2 Record 2 | . 1 1 Unreport Threat 2 | . 2 . Derelict Proto ID Bank 1 | . . 1 Fabricator Hacks . | . . . Repair Station Hacks . | . . . Recycling Unit Hacks . | . . . Scanalyzer . | . . . Garrison Access Hacks . | . . . Unauthorized Hacks 8 | . 8 . Terminals 8 | . 8 . Track 3 | . 3 . Assimilate 1 | . 1 . Botnet 3 | . 3 . Operators 1 | . 1 . Fabricators . | . . . Repair Stations . | . . . Recycling Units . | . . . Scanalyzers . | . . . Garrison Access . | . . . Data Cores Recovered . | . . . Used . | . . . Hacking Detections 3 | . 3 . Full Trace Events . | . . . Feedback Events . | . . . Feedback Blocked . | . . . Robot Schematics Acquired . | . . . Robots Built . | . . . Authchips . | . . . Time . | . . . Total Robot Build Rating . | . . . Part Schematics Acquired . | . . . Parts Built . | . . . Authchips . | . . . Time . | . . . Total Part Build Rating . | . . . Parts Repaired . | . . . Time . | . . . Parts Recycled . | . . . Recycled Matter . | . . . Retrieved Matter . | . . . Retrieved Components . | . . . Parts Scanalyzed . | . . . Part Schematics Acquired . | . . . Parts Damaged . | . . . Bothacking | -11 -10 -10 ------------ Run | Yrd Mat Sub Used RIF Installer . | . . . Robots Hacked . | . . . Non-combat . | . . . Combat . | . . . Robot Hacks Applied . | . . . Relay Couplers Released . | . . . Fabnet Peak Effective % . | . . . Robots Rewired . | . . . Allies Hacked . | . . . Hacks Repelled . | . . . Allies | -11 -10 -10 -------- Run | Yrd Mat Sub Total Allies . | . . . Largest Group . | . . . Highest-Rated Group . | . . . Highest-Rated Ally . | . . . Total Orders . | . . . Ally Attacks . | . . . Total Damage . | . . . Kills . | . . . Allies Corrupted . | . . . Allies Melted . | . . . Intel | -11 -10 -10 ------- Run | Yrd Mat Sub Robot Analysis Total . | . . . Derelict Logs Recovered . | . . . Drone Launches . | . . . Drone Recoveries . | . . . Exploration | -11 -10 -10 ------------- Run | Yrd Mat Sub Turns Passed 2714 | 65 1855 794 Spaces Moved 1194 | 36 622 536 Core 6 | 6 . . Treads 692 | 30 622 40 Legs . | . . . Wheels 496 | . . 496 Hover . | . . . Flight . | . . . Fastest Speed 50 | 50 160 115 Average Speed 169 | 144 210 124 Slowest Speed 240 | 160 240 240 Overloaded Moves . | . . . Propulsion Burnouts . | . . . Robots Hopped . | . . . Cave-ins Triggered . | . . . Exploration Rate (%) 31 | 3 59 33 Regions Visited 2 Branch Regions 1 Pre-discovered Areas . | . . . Known Exits Taken 1 | . 1 . Unknown Exits Taken 1 | 1 . . Scrap Searched 8 | . . 8 Spaces Dug 1 | . 1 . Terrain Destroyed 70 | . 1 69 Melee 1 | . 1 . Projectile . | . . . AOE 69 | . . 69 Terrain Rammed . | . . . Walls Destroyed . | . . . Machines Disabled . | . . . Actions | -11 -10 -10 --------- Run | Yrd Mat Sub Total 1677 | 46 1038 593 Wait 308 | . 307 1 Move 1192 | 35 621 536 Hop . | . . . Pick Up 29 | 4 20 5 Fast Attach 8 | 6 2 . Attach 4 | . 3 1 Detach 1 | . 1 . Swap 13 | 1 3 9 Drop 7 | . 4 3 Fire 92 | . 63 29 Melee 23 | . 14 9 Ram . | . . . Kick . | . . . Crush . | . . . Escape Stasis . | . . . Rewire . | . . . Trap . | . . . Miscellaneous . | . . . Route ------- -11/Scrapyard -10/Materials (discovered 5 exits: *Mat x2 / *Min x2 / *Sub) -10/Subcaves History --------- Turn | Location | Event 10 | -11/Scrapyard | Discovered new exit (range 16) 66 | -11/Scrapyard | Entered Materials 160 | -10/Materials | Discovered new exit (range 3) 309 | -10/Materials | Build established: Mutant 451 | -10/Materials | Discovered new exit (range 8) 674 | -10/Materials | Discovered new exit (range 10) 816 | -10/Materials | Lost 3 parts (1p2w) 900 | -10/Materials | Discovered new exit (range 14) 929 | -10/Materials | Identified exit to Materials 1645 | -10/Materials | Discovered new exit (range 3) 1723 | -10/Materials | Identified exit to Subcaves 1793 | -10/Materials | Identified exit to Mines 1921 | -10/Materials | Entered Subcaves 2008 | -10/Subcaves | Shifting Twisted Machinery released Sub. Shrapnel Launcher 2050 | -10/Subcaves | Core integrity fell below 50% 2214 | -10/Subcaves | Visited 4L-MR0's lab 2547 | -10/Subcaves | Core integrity fell below 20% 2715 | -10/Subcaves | Destroyed by XS-SRP(R) with Subdweller Laser Last Messages --------------- 02638_ Acquired 10 matter. 02640_ Searching scrap... 02640_ Found Sub. Laser. 02640_ Found 48 Matter. 02641_ Acquired 48 matter. 02641_ Searching scrap... 02641_ Found Sub. Laser. 02641_ Found Sub. Optics. 02641_ Found 57 Matter. 02642_ Acquired 29 matter. 02642_ Searching scrap... 02642_ Found Scrap Shield. 02642_ Found Riot Gun. 02642_ Found 33 Matter. 02646_ Dropped Visual Processing Unit. 02646_ Acquired Sub. Optics. 02703_ PQ-R54(R) destroyed. 02704_ Subatomizers dissect the Sub. Beam Cannon. 02709_ Sub. Shrapnel Launcher shoots sparks and powers down. 02713_ Com. Wheel destroyed. Map ----- +----------------------------------------------------+ | ?????# #???# ### % ######""""## ## | | ?????# ##### ## ###????####### | | ?????## ######????????????##### | | ?????## ## #????????????????# | | ##??## ### #####????????????????### | | #### [ ##### ##??????????????????????# | | ## #######??????????????????????# | | ##??????????????????????????# # | | #????????????????????????? # | | ## #????????????????????????## ?# | | ?# #####?????????????????????????#?? | | ?#""""" "" #???????????????????????????????## | | ?#"""## "### " #???????????????????????????????? | | ## ## "#?## ##### ???????????????????????????## | | ## ## ""#?## ? ???????????????????????????? | | ##### #### ???????????????????????????? | | ##?# ##?# ????????????????????????????? | | ### #?## ## #?? ?????????????????????????? | | ## "### #? ## ?????????????????????????? | | "" ## ??????????????????????????? | | """" #????????????????????????????? | | # " "" ########??????????????????????? | | # "" #; ###????????????????????? | | # "" ;; ;# ##???????????????????? | | ## ] ; %#???????????????????? | | ?#### R @ ###???????????????????? | | ????### && ##???????######????????? | | ????##### ;#???????##" [%#????????? | | ???## ## ; #???????#[%!"##????????? | | ???# #;;; ;;#???????#[####?????????? | | ???# ## ###?????#"! #?????????? | | ???## # ######### ###????????? | | ?#### O #" " #????????? | | ?# ; ##???????? | | ?## # & #???????? | | ??## "# ##### #???????? | | ???## ## #???######???????? | | ???## ### # ##????????????????? | | #### ## & #?????????????????? | | ## #### &!# #?????????????????? | | ####??## = ####?????????????????? | | #??????# &#????????????????????? | | #??????# #####????????????????????? | | ##### ##??????## #???????????????????????? | | #???####????????## ##???????????????????????? | | ###????????????????#####????????????????????????? | | ##???????????????????????????????????????????????? | | ?????????????????????????????????????????????????? | | ?????????????????????????????????????????????????? | | ?????????????????????????????????????????????????? | +----------------------------------------------------+ Best States ------------- Heat Dissipation 25 Energy Generation 12 Energy Capacity 265 Matter Stores 300 Matter Capacity 300 Sight Range 16 Terrain Scan Density 85 Evasion (%) 40 Recoil Reduction 2 Item Schematics ----------------- None Robot Schematics ------------------ None Fabricated ------------ Nothing Alien Tech Used ----------------- None Achievements -------------- None Challenges ------------ None Game ------ Seed ChipPropulsionRefractor Manual? 0 Play Time 00:20:27 Cumulative 57.7 hours Start 2025.03.01 @ 20:55:55 End 2025.03.01 @ 21:15:52 Sessions 1 Manual Loads 0 Difficulty Rogue Special Mode None Game No. 53 Rogue 53 Adventurer 0 Explorer 0 Win Type - Total 2 Types 2/0/0/0/0/0/0/0/0 Lore% 34 Gallery% 41 Achievement% 37 Wizard Run 0 Options --------- Layout 0 ASCII 0 Keyboard 1 Movement Numpad Keybinds 0 Fullscreen 1 Font 24/Smallcaps Map View 76x50 Zoom Use 0% Tactical HUD 1 Map Filters NONE Filters NONE Steam 1 RUN: e0b351e1-d82f-4c84-b50b-84afa1f8aefc